bitfinex/quotes_ETHUSD_20250823
["timestamp","ask_amount","ask_price","bid_price","bid_amount"]
[1755912650526,1.9039,4782.9,4782.8,0.02]
[1755912650727,2.3604,4782.9,4782.8,0.02]
[1755912653254,3.0204,4782.9,4782.8,0.02]
[1755912653455,5.9394,4782.9,4782.8,0.02]
[1755912653880,2.3604,4782.9,4782.8,0.02]
[1755912654177,5.9394,4782.9,4782.8,0.02]
[1755912654479,2.3604,4782.9,4782.8,0.02]
[1755912654776,5.9404,4782.9,4782.8,0.02]
[1755912655949,2.3604,4782.9,4782.8,0.02]
[1755912656177,5.9404,4782.9,4782.8,0.02]
[1755912656691,2.3604,4782.9,4782.8,0.02]
[1755912656896,5.9404,4782.9,4782.8,0.02]
[1755912657783,2.3604,4782.9,4782.8,0.02]
[1755912657950,5.4849,4782.9,4782.8,0.02]
[1755912658281,5.9414,4782.9,4782.8,0.1248]
[1755912658581,5.9414,4782.9,4782.8,0.02]
[1755912659683,5.9414,4782.9,4782.8,0.021]
[1755912660275,2.3604,4782.9,4782.8,0.021]
[1755912660459,5.9414,4782.9,4782.8,0.021]
[1755912662073,2.3604,4782.9,4782.8,0.021]
[1755912662273,5.9414,4782.9,4782.8,0.021]
[1755912665163,1.606,4782.9,4782.8,0.3307]
[1755912665376,5.187,4782.9,4782.8,0.908]
[1755912665892,1.607,4783.5,4782.8,0.908]
[1755912666094,5.188,4783.4,4782.9,0.4725]
[1755912666399,0.2979,4783.0,4782.8,0.021]
[1755912666561,0.4027,4783.0,4782.8,0.021]
[1755912666761,0.4565,4782.9,4782.8,0.021]
[1755912666977,0.7544,4782.9,4782.8,0.021]
[1755912667501,4.3354,4782.9,4782.8,0.021]
[1755912667868,0.7544,4782.9,4782.8,0.021]
[1755912668209,4.3354,4782.9,4782.8,0.021]
[1755912669061,3.581,4782.9,4782.8,0.021]
[1755912669569,1.607,4783.4,4782.8,0.908]
[1755912669797,3.581,4783.3,4783.2,0.1048]
[1755912670202,1.607,4783.4,4783.2,0.1048]
[1755912670506,1.607,4783.4,4783.2,0.4145]
[1755912670507,3.581,4783.3,4783.2,0.4145]
[1755912670753,3.581,4783.3,4783.2,0.887]
[1755912671407,3.581,4783.3,4783.2,0.4145]
[1755912671610,1.607,4783.4,4783.2,0.4145]
[1755912671765,1.607,4783.4,4783.2,0.887]
[1755912671968,1.607,4783.4,4783.3,0.5773]
[1755912672299,5.188,4783.4,4783.3,0.887]
[1755912672506,1.607,4783.4,4783.3,0.7822]
[1755912672708,5.188,4783.4,4783.3,0.887]
[1755912673712,5.188,4783.4,4783.3,0.4145]
[1755912673878,5.1909,4783.4,4783.3,0.1048]
[1755912674071,5.4793,4783.4,4783.3,0.1048]
[1755912674271,5.4793,4783.4,4782.8,0.021]
[1755912674272,5.4793,4783.4,4782.8,0.1258]
[1755912674584,5.4793,4783.4,4782.8,0.021]
[1755912674585,0.1048,4783.0,4782.8,0.021]
[1755912674789,3.5868,4782.9,4782.8,0.021]
[1755912674985,3.8724,4782.9,4782.8,0.021]
[1755912675774,0.2914,4782.9,4782.8,0.021]
[1755912676005,3.8724,4782.9,4782.8,0.021]
[1755912677275,0.0058,4782.9,4782.8,0.021]
[1755912677474,3.581,4782.9,4782.8,0.021]
[1755912677972,0.1068,4783.3,4782.8,0.021]
[1755912678174,3.581,4783.2,4782.8,0.021]
[1755912678407,0.1068,4783.3,4782.8,0.021]
[1755912678609,3.581,4783.2,4782.9,0.1048]
[1755912679284,0.002,4783.3,4782.9,0.1048]
[1755912679514,0.002,4783.3,4783.1,0.3969]
[1755912679515,3.581,4783.2,4783.1,0.3969]
[1755912679684,0.002,4783.3,4783.1,0.3969]
[1755912679685,0.002,4783.3,4783.1,0.41780694]
[1755912679878,0.002,4783.3,4783.1,0.3969]
[1755912679879,3.581,4783.2,4783.1,0.3969]
[1755912680386,3.581,4783.2,4783.1,0.838]
[1755912680991,3.581,4783.2,4783.1,0.96359]
[1755912681193,3.581,4783.2,4783.1,0.1048]
[1755912682615,3.8853,4783.2,4783.1,0.1048]
[1755912683326,3.581,4783.2,4783.1,0.1048]
[1755912684195,3.8853,4783.2,4783.1,0.1048]
[1755912685014,3.581,4783.2,4783.1,0.1048]
[1755912685217,0.3271618,4783.2,4783.1,0.838]
[1755912685394,3.9081618,4783.2,4783.1,0.838]
[1755912686030,3.581,4783.2,4783.1,0.838]
[1755912687818,0.002,4783.3,4783.1,0.838]
[1755912688018,0.002,4783.3,4783.2,0.4411]
[1755912688222,3.583,4783.3,4783.2,0.7332]
[1755912688933,3.91012454,4783.3,4783.2,0.7332]
[1755912690903,3.91012454,4783.3,4783.2,0.838]
[1755912694031,0.002,4783.3,4783.2,0.838]
[1755912694943,0.002,4783.8,4783.3,0.66]
[1755912695146,0.002,4783.8,4783.7,0.2921]
[1755912695450,0.002,4783.8,4783.7,0.3969]
[1755912695451,3.582,4783.8,4783.7,0.3969]
[1755912695660,0.002,4783.8,4783.7,0.838]
[1755912695868,3.582,4783.8,4783.7,0.838]
[1755912696068,0.002,4783.8,4783.7,0.838]
[1755912696366,0.002,4783.8,4783.7,1.03928118]
[1755912696367,3.582,4783.8,4783.7,1.03928118]
[1755912696967,0.002,4783.8,4783.7,1.69928118]
[1755912697872,0.002,4783.8,4783.7,1.59448118]
[1755912698172,0.002,4783.8,4783.7,1.69928118]
[1755912700883,0.002,4783.8,4783.7,31.69928118]
[1755912701360,0.002,4783.8,4783.7,11.73928118]
[1755912701560,0.002,4783.8,4783.7,7.51928118]
[1755912702057,0.002,4783.8,4783.7,9.21028118]
[1755912702594,0.32906019,4783.8,4783.7,5.35528118]
[1755912702799,1.07776019,4783.8,4783.3,1.87258974]
[1755912703108,1.07776019,4783.8,4782.8,0.021]
[1755912703109,0.4444,4783.7,4782.8,0.021]
[1755912703399,0.3043,4782.9,4782.8,0.021]
[1755912703581,5.4903,4782.9,4782.8,0.021]
[1755912703910,5.9347,4782.9,4782.8,0.021]
[1755912704787,2.3557,4782.9,4782.8,0.021]
[1755912704959,5.9347,4782.9,4782.8,0.021]
[1755912709265,5.8847,4782.9,4782.8,0.021]
[1755912712228,6.5447,4782.9,4782.8,0.021]
[1755912712894,6.6495,4782.9,4782.8,0.021]
[1755912714232,2.75092405,4782.6,4782.2,0.001]
[1755912714533,0.66,4782.2,4780.8,0.02]
[1755912714683,0.9551,4781.9,4780.8,0.02]
[1755912714888,6.2469,4781.9,4780.8,0.02]
[1755912715084,6.7083,4781.9,4780.8,0.02]
[1755912716204,6.2083,4781.9,4780.8,0.02]
[1755912716517,6.448,4781.9,4780.8,0.02]
[1755912716708,6.448,4781.9,4780.8,0.021]
[1755912717217,9.448,4781.9,4780.8,0.021]
[1755912717423,5.868,4781.9,4780.8,0.021]
[1755912717588,9.448,4781.9,4780.8,0.021]
[1755912718619,8.9929,4781.9,4780.8,0.021]
[1755912719617,9.6529,4781.9,4780.8,0.021]
[1755912720187,9.98023487,4781.9,4780.8,0.021]
[1755912720387,9.98123487,4781.9,4780.8,0.021]
[1755912720823,9.6539,4781.9,4780.8,0.021]
[1755912722201,3.66,4781.8,4780.8,0.021]
[1755912722402,3.66,4781.8,4779.6,0.001]
[1755912722403,0.66,4780.8,4779.6,0.001]
[1755912722604,0.3999,4779.9,4779.6,0.001]
[1755912722825,3.9799,4779.9,4779.6,0.001]
[1755912723725,4.30732524,4779.9,4779.6,0.001]
[1755912724706,3.9799,4779.9,4779.6,0.001]
[1755912724901,4.3843,4779.9,4779.6,0.001]
[1755912725318,3.9799,4779.9,4779.6,0.001]
[1755912725522,1.608,4779.9,4779.6,0.001]
[1755912725721,5.4841,4779.9,4779.6,0.001]
[1755912727347,5.4841,4779.9,4779.8,0.021]
[1755912728916,5.51643878,4779.9,4779.8,0.021]
[1755912731648,5.51643878,4779.9,4779.8,0.3095]
[1755912732065,5.51643878,4779.9,4779.8,0.784]
[1755912732264,5.51743878,4779.9,4779.8,0.784]
[1755912732967,5.51743878,4779.9,4779.8,0.021]
[1755912733247,5.52143878,4779.9,4779.8,0.021]
[1755912733947,5.19,4779.9,4779.8,0.021]
[1755912734155,5.1985,4779.9,4779.8,0.021]
[1755912734311,9.8508,4779.9,4779.8,0.021]
[1755912735228,10.5108,4779.9,4779.8,0.021]
[1755912735856,6.4765,4779.9,4779.8,0.021]
[1755912736056,10.1633,4779.9,4779.8,0.021]
[1755912737136,6.5728,4779.9,4779.8,0.021]
[1755912737441,10.1677,4779.9,4779.8,0.021]
[1755912738950,10.49516466,4779.9,4779.8,0.021]
[1755912740292,6.91316466,4779.9,4779.8,0.021]
[1755912740427,10.49516466,4779.9,4779.8,0.021]
[1755912741461,13.92946466,4779.9,4779.8,0.021]
[1755912742677,14.01328866,4779.9,4779.8,0.021]
[1755912742849,13.57898866,4779.9,4779.8,0.021]
[1755912743249,14.01328866,4779.9,4779.8,0.021]
[1755912744062,13.57898866,4779.9,4779.8,0.021]
[1755912744237,14.45792457,4779.9,4779.8,0.021]
[1755912744873,14.13045991,4779.9,4779.8,0.021]
[1755912745952,3.66,4779.8,4779.3,0.001]
[1755912746177,18.7349456,4779.4,4779.3,0.001]
[1755912746348,3.66,4779.3,4778.8,0.021]
[1755912746551,0.3597,4778.9,4778.8,0.021]
[1755912746739,5.5507,4778.9,4778.8,0.021]
[1755912747761,6.179497,4778.9,4778.8,0.021]
[1755912748580,6.179497,4778.9,4778.8,0.3259]
[1755912748581,8.924597,4778.9,4778.8,0.3259]
[1755912748875,8.9558,4778.9,4778.8,0.3259]
[1755912749381,8.9558,4778.9,4778.8,0.021]
[1755912749747,9.28333462,4778.9,4778.8,0.021]
[1755912750145,19.28333462,4778.9,4778.8,0.021]
[1755912750475,19.28433462,4778.9,4778.8,0.021]
[1755912750693,15.04133462,4778.9,4778.8,0.3259]
[1755912750843,12.04133462,4778.9,4778.8,0.7988]
[1755912751045,15.62433462,4778.9,4778.8,0.7988]
[1755912753145,12.04133462,4778.9,4778.8,0.7988]
[1755912753346,15.62433462,4778.9,4778.8,0.7988]
[1755912754074,12.04133462,4778.9,4778.8,0.7988]
[1755912754448,15.2968,4778.9,4778.8,0.7988]
[1755912755162,5.2968,4778.9,4778.8,0.7988]
[1755912756982,1.7138,4778.9,4778.8,0.7988]
[1755912757186,5.2968,4778.9,4778.8,0.7988]
[1755912757955,5.2968,4778.9,4778.8,0.021]
[1755912757956,5.4942,4778.9,4778.8,0.021]
[1755912758157,16.5515,4778.9,4778.8,0.021]
[1755912758976,16.1542,4778.9,4778.8,0.021]
[1755912759789,16.4817303,4778.9,4778.8,0.021]
[1755912759953,11.9365303,4778.9,4778.8,0.3259]
[1755912760152,15.5185303,4778.9,4778.8,0.3259]
[1755912760357,15.7850303,4778.9,4778.8,0.021]
[1755912761014,15.5185303,4778.9,4778.8,0.021]
[1755912762197,15.7867303,4778.9,4778.8,0.021]
[1755912762398,16.8777303,4778.9,4778.8,0.021]
[1755912763901,19.9615693,4778.9,4778.8,0.021]
[1755912764902,19.203039,4778.9,4778.8,0.021]
[1755912765909,18.851,4778.9,4778.8,0.021]
[1755912766410,19.1175,4778.9,4778.8,0.021]
[1755912766711,19.1532,4778.9,4778.8,0.021]
[1755912768013,19.258,4778.9,4778.8,0.021]
[1755912768528,18.9558,4778.9,4778.8,0.021]
[1755912769091,11.609,4778.9,4778.8,0.7619]
[1755912769296,11.609,4778.9,4778.8,0.3334]
[1755912769498,15.191,4778.9,4778.8,0.7619]
[1755912770730,11.93651087,4778.9,4778.8,0.7619]
[1755912771056,15.51851087,4778.9,4778.8,0.7619]
[1755912772126,20.54751087,4778.9,4778.8,0.7619]
[1755912773485,20.54751087,4778.9,4778.8,0.3334]
[1755912773686,20.54751087,4778.9,4778.8,0.021]
[1755912774288,20.55211087,4778.9,4778.8,0.021]
[1755912775227,16.97011087,4778.9,4778.8,0.021]
[1755912775414,20.55211087,4778.9,4778.8,0.021]
[1755912775921,24.21211087,4778.9,4778.8,0.021]
[1755912776121,24.66651087,4778.9,4778.8,0.021]
[1755912776332,24.339,4778.9,4778.8,0.021]
[1755912779136,24.4438,4778.9,4778.8,0.021]
[1755912779850,24.75469364,4778.9,4778.8,0.021]
[1755912779992,25.0822592,4778.9,4778.8,0.021]
[1755912780495,31.33348346,4778.9,4778.8,0.021]
[1755912780691,31.79308346,4778.9,4778.8,0.021]
[1755912782030,28.21108346,4778.9,4778.8,0.021]
[1755912782440,31.79308346,4778.9,4778.8,0.021]
[1755912785964,31.4655179,4778.9,4778.8,0.021]
[1755912786267,27.19687226,4778.9,4778.8,0.021]
[1755912786440,30.77887226,4778.9,4778.8,0.021]
[1755912788170,3.66,4778.8,4778.7,0.001]
[1755912788460,4.3589,4778.8,4778.2,3.3092034]
[1755912788756,10.36562426,4778.3,4778.2,3.3092034]
[1755912788963,13.94762426,4778.3,4778.2,3.3092034]
[1755912789160,23.94762426,4778.3,4778.2,3.3092034]
[1755912789362,24.51880497,4778.3,4778.2,3.3092034]
[1755912789857,25.14767997,4778.3,4778.2,3.3092034]
[1755912791339,21.32207997,4778.3,4778.2,3.3092034]
[1755912791668,24.90407997,4778.3,4778.2,4.0501034]
[1755912791852,24.90407997,4778.3,4778.2,3.3092034]
[1755912792265,25.14557997,4778.3,4778.2,3.3092034]
[1755912795778,1.609,4776.1,4776.0,10.6909]
[1755912795981,5.191,4776.1,4776.0,10.6909]
[1755912797151,15.191,4776.1,4776.0,10.6909]
[1755912797651,15.191,4776.1,4776.0,10.2624]
[1755912797868,15.191,4776.1,4776.0,10.6909]
[1755912798192,15.2958,4776.1,4776.0,10.6909]
[1755912798951,15.2958,4776.1,4776.0,9.95]
[1755912799153,15.924896,4776.1,4776.0,9.95]
[1755912799465,15.924896,4776.1,4772.8,0.02]
[1755912799466,2.206,4774.9,4772.8,0.02]
[1755912799782,3.66,4774.3,4773.5,0.446]
[1755912799982,3.696,4774.2,4773.8,0.463]
[1755912800288,3.696,4774.1,4773.8,0.02]
[1755912800497,3.0,4774.7,4774.1,0.3034]
[1755912800783,5.308,4774.6,4774.2,0.443]
[1755912800983,5.66045,4774.8,4774.7,0.3034]
[1755912800984,5.031,4774.8,4774.7,0.3034]
[1755912801292,5.031,4774.8,4773.8,0.02]
[1755912801293,5.308,4774.8,4773.8,0.02]
[1755912801455,8.31562426,4774.8,4773.9,0.443]
[1755912801656,8.31562426,4774.8,4774.7,0.3034]
[1755912801891,0.66,4774.7,4773.8,0.463]
[1755912802190,3.708,4774.6,4773.9,0.443]
[1755912802704,18.64351329,4774.8,4773.9,0.443]
[1755912802705,11.93788903,4774.8,4774.5,0.3034]
[1755912802891,11.93788903,4774.8,4774.6,0.443]
[1755912803091,3.707,4774.7,4774.6,0.443]
[1755912803293,3.707,4774.7,4774.6,0.7464]
[1755912803493,3.66,4774.6,4773.8,0.02]
[1755912803803,9.70562426,4773.9,4773.8,0.02]
[1755912804011,6.642,4773.9,4773.8,0.463]
[1755912804310,16.642,4773.9,4773.8,0.7664]
[1755912804507,20.67890671,4773.9,4773.8,0.7664]
[1755912804873,16.642,4773.9,4773.8,0.7664]
[1755912805075,20.35,4773.9,4773.8,0.7664]
[1755912805602,20.35,4773.9,4773.5,0.003]
[1755912805603,16.8835,4773.9,4773.5,0.003]
[1755912805770,0.66,4771.9,4771.8,0.02]
[1755912805978,15.25538497,4773.9,4771.8,0.02]
[1755912806274,0.4299,4773.2,4771.8,0.02]
[1755912806516,0.66,4772.9,4771.8,0.02]
[1755912806806,0.4299,4773.2,4771.8,0.02]
[1755912806807,3.0,4772.7,4771.8,0.02]
[1755912806980,1.61,4772.8,4771.8,0.463]
[1755912807309,10.0,4771.9,4771.8,0.02]
[1755912807616,18.912,4771.9,4771.8,0.3234]
[1755912807818,18.912,4771.9,4771.8,0.02]
[1755912808173,20.526,4771.9,4771.8,0.7664]
[1755912808607,16.643,4771.9,4771.8,0.7664]
[1755912808806,20.523,4771.9,4771.8,0.7664]
[1755912809113,10.523,4771.9,4771.8,0.7664]
[1755912809276,5.81801257,4771.9,4771.8,0.7664]
[1755912809478,5.92281257,4771.9,4771.8,0.7664]
[1755912810216,15.92281257,4771.9,4771.8,0.7664]
[1755912810407,14.88371257,4771.9,4771.8,0.7664]
[1755912811394,14.88071257,4771.9,4771.8,0.7664]
[1755912811600,11.00371257,4771.9,4771.8,0.7664]
[1755912811924,14.5507,4771.9,4771.8,0.7664]
[1755912812089,4.5507,4771.9,4771.8,0.7664]
[1755912813212,4.5507,4771.9,4769.8,0.02]
[1755912813213,4.5507,4771.9,4769.5,0.5742]
[1755912813425,4.5507,4771.9,4771.8,0.3034]
[1755912813598,0.6757,4771.9,4771.8,0.3034]
[1755912813998,4.5437,4771.9,4771.8,0.3034]
[1755912815024,0.6757,4771.9,4771.8,0.3034]
[1755912815231,0.5709,4771.9,4771.8,0.3034]
[1755912815389,4.4349,4771.9,4771.8,0.8512]
[1755912816329,1.611,4772.6,4771.8,0.8512]
[1755912816502,3.862,4772.5,4771.8,0.3034]
[1755912816697,1.611,4772.6,4771.9,0.443]
[1755912817033,3.862,4772.5,4771.9,0.443]
[1755912817231,3.862,4772.5,4772.4,0.3034]
[1755912817400,3.862,4772.5,4772.4,0.8512]
[1755912818094,3.862,4772.5,4772.4,0.7464]
[1755912818491,1.611,4772.6,4772.4,0.7464]
[1755912818890,1.611,4772.6,4772.4,0.3034]
[1755912819128,3.858,4772.5,4772.4,0.3034]
[1755912819627,1.611,4772.6,4772.4,0.3034]
[1755912819806,3.856,4772.5,4772.4,0.3034]
[1755912820006,1.93889034,4772.6,4772.4,0.3034]
[1755912820320,3.856,4772.5,4772.4,0.3034]
[1755912820829,3.856,4772.5,4772.4,0.7464]
[1755912821193,1.93889034,4772.6,4772.4,0.7464]
[1755912821504,3.853,4772.5,4772.4,0.7464]
[1755912821705,3.853,4772.5,4772.4,0.3034]
[1755912822324,3.853,4772.5,4772.4,0.7464]
[1755912823724,3.853,4772.5,4772.4,0.3034]
[1755912824702,3.853,4772.5,4771.8,0.02]
[1755912825005,14.1551,4772.5,4771.8,0.02]
[1755912825334,0.4299,4772.4,4771.8,0.02]
[1755912825538,3.843,4772.3,4771.8,0.02]
[1755912825910,4.2729,4772.3,4771.8,0.02]
[1755912826111,10.0,4772.4,4772.2,0.3034]
[1755912826311,3.841,4772.3,4771.8,0.02]
[1755912826838,5.452,4772.2,4771.9,0.443]
[1755912827044,1.611,4772.2,4771.8,0.02]
[1755912827206,1.611,4772.2,4772.1,0.3034]
[1755912827533,1.611,4772.2,4772.1,0.7464]
[1755912828133,5.45,4772.2,4772.1,0.8512]
[1755912828336,5.45,4772.2,4772.1,0.4082]
[1755912828905,5.45,4772.2,4771.8,0.02]
[1755912829099,5.77792258,4772.2,4771.8,0.02]
[1755912829306,0.3014,4771.9,4771.8,0.02]
[1755912829500,4.2412,4771.9,4771.8,0.02]
[1755912829936,3.9398,4771.9,4771.8,0.02]
[1755912830614,3.9408,4771.9,4771.8,0.313]
[1755912831262,3.9408,4771.9,4771.8,0.02]
[1755912832635,4.6824,4771.9,4771.8,0.02]
[1755912832844,4.2342,4771.9,4771.8,0.02]
[1755912833460,4.6744,4771.9,4771.8,0.02]
[1755912834180,14.6744,4771.9,4771.8,0.02]
[1755912835054,14.7792,4771.9,4771.8,0.02]
[1755912836148,10.9512,4771.9,4771.8,0.02]
[1755912836461,14.6714,4771.9,4771.8,0.02]
[1755912837864,10.8464,4771.9,4771.8,0.02]
[1755912838165,14.2212,4771.9,4771.8,0.02]
[1755912838333,10.4062,4771.9,4771.8,0.02]
[1755912838535,10.1048,4771.9,4771.8,0.02]
[1755912838973,13.9208,4771.9,4771.8,0.313]
[1755912839278,3.9208,4771.9,4771.8,0.02]
[1755912839962,0.1048,4771.9,4771.8,0.02]
[1755912840172,3.9158,4771.9,4771.8,0.02]
[1755912840534,0.1048,4771.9,4771.8,0.02]
[1755912840763,0.32795655,4771.9,4771.8,0.313]
[1755912840967,4.13895655,4771.9,4771.8,0.313]
[1755912841179,10.32795655,4771.9,4771.8,0.313]
[1755912841658,14.13595655,4771.9,4771.8,0.313]
[1755912841829,10.32795655,4771.9,4771.8,0.313]
[1755912842033,10.32795655,4771.9,4771.8,0.7585]
[1755912842256,10.32795655,4771.9,4771.8,0.8633]
[1755912842257,0.32795655,4771.9,4771.8,0.8633]
[1755912842473,4.13495655,4771.9,4771.8,0.8633]
[1755912842690,0.32795655,4771.9,4771.8,0.8633]
[1755912842833,3.807,4772.2,4771.9,30.66]
[1755912843179,0.02,4772.8,4772.1,0.3978]
[1755912843476,3.807,4772.7,4772.2,0.4455]
[1755912843676,3.807,4772.7,4772.6,0.293]
[1755912844042,3.807,4772.7,4772.6,0.7385]
[1755912844439,3.807,4772.7,4772.6,0.8433]
[1755912844742,3.807,4772.7,4772.6,0.3978]
[1755912845348,4.1084,4772.7,4771.8,0.02]
[1755912845548,0.4402,4772.6,4771.8,0.02]
[1755912846247,3.802,4772.5,4771.8,0.02]
[1755912847259,0.3014,4771.9,4771.8,0.02]
[1755912847473,5.7124,4771.9,4771.8,0.02]
[1755912847646,6.1526,4771.9,4771.8,0.02]
[1755912847980,2.3526,4771.9,4771.8,0.02]
[1755912848142,16.1516,4771.9,4771.8,0.02]
[1755912848951,11.9124,4771.9,4771.8,0.02]
[1755912849152,6.1516,4771.9,4771.8,0.02]
[1755912850185,16.1516,4771.9,4771.8,0.02]
[1755912852894,16.8116,4771.9,4771.8,0.02]
[1755912853182,15.436565,4771.9,4771.8,0.02]
[1755912853380,19.887565,4771.9,4771.8,0.02]
[1755912853579,19.236565,4771.9,4771.8,0.02]
[1755912853779,20.2246014,4771.9,4771.8,0.02]
[1755912853982,15.7646014,4771.9,4771.8,0.02]
[1755912854186,19.5666014,4771.9,4771.8,0.02]
[1755912854882,19.5676014,4771.9,4771.8,0.02]
[1755912855289,19.6714014,4771.9,4771.8,0.02]
[1755912855664,16.6714014,4771.9,4771.8,0.02]
[1755912855863,16.343365,4771.9,4771.8,0.02]
[1755912856785,17.003365,4771.9,4771.8,0.02]
[1755912857476,17.33141719,4771.9,4771.8,0.02]
[1755912857987,20.33141719,4771.9,4771.8,0.02]
[1755912859096,20.44092998,4771.9,4771.8,0.02]
[1755912859254,20.44092998,4771.9,4771.8,0.021]
[1755912859590,12.87412998,4771.9,4771.8,0.021]
[1755912859892,16.236565,4771.9,4771.8,0.021]
[1755912860463,16.235565,4771.9,4771.8,0.021]
[1755912860774,16.895565,4771.9,4771.8,0.021]
[1755912861093,16.235565,4771.9,4771.8,0.021]
[1755912861310,12.436565,4771.9,4771.8,0.021]
[1755912861806,16.235565,4771.9,4771.8,0.021]
[1755912861960,12.436565,4771.9,4771.8,0.021]
[1755912862151,16.234565,4771.9,4771.8,0.021]
[1755912862467,12.436565,4771.9,4771.8,0.021]
[1755912862685,15.792365,4771.9,4771.8,0.021]
[1755912862883,16.56538461,4771.9,4771.8,0.021]
[1755912865928,16.12038461,4771.9,4771.8,0.021]
[1755912866498,16.56538461,4771.9,4771.8,0.021]
[1755912866698,16.237365,4771.9,4771.8,0.021]
[1755912868514,16.897365,4771.9,4771.8,0.021]
[1755912869373,19.103365,4771.9,4771.8,0.021]
[1755912869577,19.208165,4771.9,4771.8,0.021]
[1755912869778,13.206165,4771.9,4771.8,0.021]
[1755912869988,16.988165,4771.9,4771.8,0.021]
[1755912870214,17.31621454,4771.9,4771.8,0.021]
[1755912872408,20.31621454,4771.9,4771.8,0.021]
[1755912872918,22.52221454,4771.9,4771.8,0.021]
[1755912873600,18.74021454,4771.9,4771.8,0.021]
[1755912873780,24.61081587,4771.9,4771.8,0.021]
[1755912874416,22.51521454,4771.9,4771.3,0.001]
[1755912874591,8.06662093,4771.4,4771.3,0.001]
[1755912874790,12.15432093,4771.4,4771.3,0.001]
[1755912874991,2.866,4770.9,4770.8,0.02]
[1755912875198,16.7075,4770.9,4770.8,0.02]
[1755912875401,17.1525,4770.9,4770.8,0.02]
[1755912875604,6.7528,4770.9,4770.8,0.3243]
[1755912875831,1.612,4770.9,4770.8,0.7532]
[1755912875981,5.4968,4770.9,4770.8,0.7532]
[1755912876180,11.7168,4770.9,4770.8,0.7532]
[1755912876628,15.4968,4770.9,4770.8,0.7532]
[1755912877934,11.7168,4770.9,4770.8,0.7532]
[1755912878107,15.4958,4770.9,4770.8,0.7532]
[1755912878308,15.4928,4770.9,4770.8,0.7532]
[1755912879714,11.7168,4770.9,4770.8,0.7532]
[1755912879916,15.4888,4770.9,4770.8,0.7532]
[1755912880103,5.4888,4770.9,4770.8,0.7532]
[1755912880304,5.384,4770.9,4770.8,0.7532]
[1755912881048,1.612,4770.9,4770.8,0.7532]
[1755912881213,5.384,4770.9,4770.8,0.7532]
[1755912882222,5.384,4770.9,4770.8,0.3243]
[1755912882403,1.612,4770.9,4770.8,0.7532]
[1755912882605,4.09501742,4771.2,4770.8,0.7532]
[1755912882922,4.09501742,4771.2,4770.9,0.4289]
[1755912883125,4.09501742,4771.2,4771.1,0.3043]
[1755912884100,14.09501742,4771.2,4770.8,0.02]
[1755912884322,1.611,4771.1,4770.8,0.02]
[1755912884640,3.763,4771.0,4770.8,0.02]
[1755912884826,4.1919,4771.0,4770.9,0.3043]
[1755912885003,0.4289,4771.0,4770.9,0.7332]
[1755912885216,3.762,4771.0,4770.9,0.7332]
[1755912885626,10.0,4771.4,4770.9,0.7332]
[1755912885817,3.76,4771.3,4770.9,0.7332]
[1755912886018,10.0,4771.4,4771.0,0.4289]
[1755912886256,3.76,4771.5,4771.3,0.3043]
[1755912886755,0.002,4772.4,4771.4,0.4289]
[1755912886914,3.762,4772.3,4771.4,0.4289]
[1755912887120,3.762,4772.3,4772.2,0.3043]
[1755912887464,3.762,4772.3,4772.2,0.7332]
[1755912887951,0.002,4772.4,4772.2,0.7332]
[1755912888151,0.002,4772.4,4772.3,0.48895425]
[1755912888319,0.002,4772.4,4772.3,0.7769]
[1755912889331,0.002,4772.4,4772.3,30.7769]
[1755912889545,0.002,4772.4,4772.3,13.322278]
[1755912889722,0.32985269,4772.4,4772.3,13.322278]
[1755912889922,0.002,4772.4,4772.3,13.322278]
[1755912890253,0.002,4772.4,4772.3,13.427078]
[1755912891457,0.002,4772.4,4772.3,13.982278]
[1755912891657,0.002,4772.4,4772.3,14.087078]
[1755912891950,0.002,4772.4,4772.3,33.434078]
[1755912892745,0.002,4772.4,4772.3,3.434078]
[1755912893056,0.19940133,4777.4,4772.4,10.66]
[1755912893226,0.02,4774.8,4774.7,0.3089]
[1755912893559,0.02,4774.8,4774.7,0.1048]
[1755912893730,0.02,4774.8,4774.7,0.4137]
[1755912894753,0.02,4774.8,4774.7,0.1048]
[1755912894953,0.02,4774.8,4774.3,0.1048]
[1755912895156,0.492,4774.8,4774.3,0.1048]
[1755912895329,0.472,4774.7,4774.3,0.1048]
[1755912895530,0.492,4774.8,4774.3,0.1048]
[1755912895744,0.472,4774.7,4774.3,0.1048]
[1755912896260,0.472,4774.6,4774.3,0.1048]
[1755912897332,10.0,4774.6,4774.3,0.1048]
[1755912897922,0.472,4774.5,4774.3,0.1048]
[1755912898236,10.472,4774.5,4774.3,0.1048]
[1755912898557,10.0,4774.5,4774.4,0.3089]